[Event "1000GM Schev-G4 May 2024"]
[Site "Sunnyvale"]
[Date "2024.05.11"]
[Round "1.2"]
[White "Zuluaga Mancilla, Cesar"]
[Black "Champsi, Imran"]
[Result "1/2-1/2"]
[ECO "A59"]
[WhiteElo "2190"]
[BlackElo "2029"]
[Annotator "ChessBase"]
[PlyCount "120"]
[EventDate "2024.05.10"]
[EventType "schev"]
[EventCountry "USA"]
[SourceTitle "playchess.com"]
[Source "ChessBase"]
[SourceQuality "1"]
[TimeControl "5400+30"]

1. d4 {[%emt 0:02:20]} Nf6 {[%emt 0:00:01]} 2. c4 {[%emt 0:00:11]} c5 {[%emt 0:00:01]} 3. d5 {[%emt 0:00:26]} b5 {[%emt 0:00:02]} 4. cxb5 {[%emt 0:00:16]} a6 {[%emt 0:00:02]} 5. bxa6 {[%emt 0:00:29]} g6 {[%emt 0:02:45]} 6. Nc3 {[%emt 0:00:12]} Bxa6 {[%emt 0:00:31]} 7. Nf3 {[%emt 0:00:49]} Bg7 {[%emt 0:00:10]} 8. g3 {[%emt 0:01:09]} O-O {[%emt 0:00:10]} 9. e4 {[%emt 0:00:23]} Bxf1 {[%emt 0:00:03]} 10. Kxf1 {[%emt 0:00:10]} d6 {[%emt 0:01:59]} 11. Kg2 {[%emt 0:00:40]} Nbd7 {[%emt 0:00:02]} 12. h3 {[%emt 0:00:19]} Ra6 {[%emt 0:00:44]} 13. Qe2 {[%emt 0:04:13]} Qa8 {[%emt 0:00:02]} 14. Rd1 {[%emt 0:00:32]} Rb8 {[%emt 0:03:02]} 15. Bg5 {[%emt 0:07:55]} Rab6 {[%emt 0:18:35]} 16. b3 {[%emt 0:06:15]} h6 {[%emt 0:06:37]} 17. Bd2 {[%emt 0:01:06]} Ne8 {[%emt 0:08:27]} 18. Rac1 {[%emt 0:00:52]} Nc7 {[%emt 0:03:43]} 19. Na4 {[%emt 0:05:47]} Qa6 {[%emt 0:01:12]} 20. Qe3 {[%emt 0:02:04]} R6b7 {[%emt 0:00:35]} 21. Bc3 {[%emt 0:00:08]} f6 {[%emt 0:03:10]} 22. Ba1 {[%emt 0:06:14]} Nb6 {[%emt 0:05:57]} 23. Nxb6 {[%emt 0:02:21]} Rxb6 {[%emt 0:00:26]} 24. Rc2 {[%emt 0:00:34]} Qc8 {[%emt 0:03:19]} 25. Nh4 {[%emt 0:05:04]} Kh7 {[%emt 0:02:05]} 26. f4 {[%emt 0:03:43]} Qe8 {[%emt 0:04:09]} 27. f5 {[%emt 0:02:32]} g5 {[%emt 0:00:58]} 28. Ng6 {[%emt 0:00:32]} e6 {[%emt 0:00:57]} 29. dxe6 {[%emt 0:00:44]} Nxe6 {[%emt 0:00:04]} 30. Rcd2 {[%emt 0:00:47]} Nf8 {[%emt 0:01:38]} 31. Nxf8+ {[%emt 0:09:03]} Qxf8 {[%emt 0:00:02]} 32. Bc3 {[%emt 0:01:20]} Qe7 {[%emt 0:01:00]} 33. Kf3 {[%emt 0:00:18]} Rc6 {[%emt 0:01:37]} 34. Rd5 {[%emt 0:03:13]} Ra8 {[%emt 0:04:46]} 35. R1d2 {[%emt 0:00:28]} Ra3 {[%emt 0:03:32]} 36. Qe2 {[%emt 0:10:42]} Rca6 {[%emt 0:04:33]} 37. Qd3 {[%emt 0:09:26]} Rxa2 {[%emt 0:07:06]} 38. Rxa2 {[%emt 0:00:21]} Rxa2 {[%emt 0:00:02]} 39. Rxd6 {[%emt 0:00:15]} Qf7 {[%emt 0:02:56]} 40. Rd7 {[%emt 0:10:18]} Qh5+ {[%emt 0:00:32]} 41. Ke3 {[%emt 0:00:02]} Rg2 {[%emt 0:02:09]} 42. Be1 {[%emt 0:00:27]} Qxh3 {[%emt 0:03:20]} 43. Rxg7+ {[%emt 0:00:47]} Kxg7 {[%emt 0:00:02]} 44. Qd7+ {[%emt 0:00:10]} Kf8 {[%emt 0:03:07]} 45. Qd6+ {[%emt 0:01:00]} Kf7 {[%emt 0:01:16]} 46. Qe6+ {[%emt 0:00:11]} Kf8 {[%emt 0:00:13]} 47. Qxf6+ {[%emt 0:00:27]} Kg8 {[%emt 0:02:17]} 48. Qd8+ {[%emt 0:01:03]} Kf7 {[%emt 0:00:07]} 49. Qd5+ {[%emt 0:00:41]} Ke8 {[%emt 0:00:25]} 50. Qe6+ {[%emt 0:00:57]} Kf8 {[%emt 0:00:01]} 51. Qd6+ {[%emt 0:00:40]} Kf7 {[%emt 0:01:11]} 52. Qc7+ {[%emt 0:00:22]} Ke8 {[%emt 0:00:53]} 53. Qc6+ {[%emt 0:03:51]} Kf7 {[%emt 0:01:03]} 54. Qg6+ {[%emt 0:01:35]} Kf8 {[%emt 0:00:26]} 55. Qd6+ {[%emt 0:00:31]} Kf7 {[%emt 0:00:20]} 56. Qc7+ {[%emt 0:00:09]} Ke8 {[%emt 0:00:11]} 57. Qe5+ {[%emt 0:01:16]} Kf7 {[%emt 0:00:27]} 58. Qe6+ {[%emt 0:00:28]} Kf8 {[%emt 0:00:23]} 59. Qc8+ {[%emt 0:00:12]} Kf7 {[%emt 0:00:27]} 60. Qc7+ {[%emt 0:00:23]} Ke8 {[%emt 0:04:40]} 1/2-1/2

[Event "1000GM Schev-G4 May 2024"]
[Site "Sunnyvale"]
[Date "2024.05.11"]
[Round "1.3"]
[White "Cremisi, Daniel"]
[Black "Pullela, Sricharan"]
[Result "1-0"]
[ECO "A65"]
[WhiteElo "2171"]
[BlackElo "2125"]
[Annotator "ChessBase"]
[PlyCount "113"]
[EventDate "2024.05.10"]
[EventType "schev"]
[EventCountry "USA"]
[SourceTitle "playchess.com"]
[Source "ChessBase"]
[SourceQuality "1"]
[TimeControl "5400+30"]

1. d4 {[%emt 1:31:00]} Nf6 {[%emt 0:01:32]} 2. c4 {[%emt 0:00:00]} c5 {[%emt 0:00:20]} 3. d5 {[%emt 0:00:00]} e6 {[%emt 0:00:04]} 4. Nc3 {[%emt 0:00:00]} exd5 {[%emt 0:00:06]} 5. cxd5 {[%emt 0:00:00]} d6 {[%emt 0:00:04]} 6. e4 {[%emt 0:00:00]} g6 {[%emt 0:00:05]} 7. h3 {[%emt 0:00:00]} Bg7 {[%emt 0:00:11]} 8. Bg5 {[%emt 0:00:00]} O-O {[%emt 0:02:06]} 9. Bd3 {[%emt 0:00:00]} a6 {[%emt 0:03:30]} 10. a4 {[%emt 0:00:00]} Qc7 {[%emt 0:01:25]} 11. Nf3 {[%emt 0:00:00]} Nbd7 {[%emt 0:00:49]} 12. O-O {[%emt 0:00:00]} c4 {[%emt 0:19:01]} 13. Be2 {[%emt 0:00:00]} Rb8 {[%emt 0:04:26]} 14. Rc1 {[%emt 0:00:00]} Re8 {[%emt 0:07:18]} 15. Nd2 {[%emt 0:00:00]} b5 {[%emt 0:01:39]} 16. axb5 {[%emt 0:00:00]} axb5 {[%emt 0:00:07]} 17. b4 {[%emt 0:00:00]} h6 {[%emt 0:09:20]} 18. Be3 {[%emt 0:00:00]} g5 {[%emt 0:02:13]} 19. Ra1 {[%emt 0:00:00]} Ne5 {[%emt 0:05:57]} 20. Ra7 {[%emt 0:00:00]} Qd8 {[%emt 0:00:10]} 21. Qc2 {[%emt 0:00:00]} Re7 {[%emt 0:01:13]} 22. Ra5 {[%emt 0:00:00]} Bd7 {[%emt 0:02:03]} 23. f4 {[%emt 0:00:00]} gxf4 {[%emt 0:00:19]} 24. Bxf4 {[%emt 0:00:00]} Qb6+ {[%emt 0:02:29]} 25. Kh1 {[%emt 0:00:00]} Ng6 {[%emt 0:05:57]} 26. Bh2 {[%emt 0:00:00]} Ne8 {[%emt 0:02:15]} 27. Bg1 {[%emt 0:00:00]} Bd4 {[%emt 0:01:52]} 28. Bxd4 {[%emt 0:00:00]} Qxd4 {[%emt 0:00:12]} 29. Nf3 {[%emt 0:00:00]} Qe3 {[%emt 0:01:29]} 30. Qd2 {[%emt 0:00:00]} Qxd2 {[%emt 0:01:27]} 31. Nxd2 {[%emt 0:00:00]} Kg7 {[%emt 0:01:22]} 32. Ra7 {[%emt 0:00:00]} Bc8 {[%emt 0:06:02]} 33. Rxe7 {[%emt 0:00:00]} Nxe7 {[%emt 0:00:04]} 34. Ra1 {[%emt 0:00:00]} Ng6 {[%emt 0:04:27]} 35. Nf3 {[%emt 0:00:00]} Kf6 {[%emt 0:07:44]} 36. Ra7 {[%emt 0:00:00]} Ne5 {[%emt 0:01:51]} 37. Nd4 {[%emt 0:00:00]} Bd7 {[%emt 0:00:22]} 38. Kg1 {[%emt 0:00:00]} Kg6 {[%emt 0:01:04]} 39. Kf2 {[%emt 0:00:00]} Nf6 {[%emt 0:00:31]} 40. Ra6 {[%emt 0:00:00]} Ne8 {[%emt 0:01:09]} 41. Ke3 {[%emt 0:00:00]} Kg7 {[%emt 0:00:26]} 42. Ra7 {[%emt 0:00:00]} Kf8 {[%emt 0:01:21]} 43. Nf3 {[%emt 0:00:00]} Nxf3 {[%emt 0:00:59]} 44. Bxf3 {[%emt 0:00:00]} Nf6 {[%emt 0:00:08]} 45. Kd4 {[%emt 0:00:00]} Ke7 {[%emt 0:01:06]} 46. e5 {[%emt 0:00:00]} dxe5+ {[%emt 0:00:06]} 47. Kxe5 {[%emt 0:00:00]} Rb6 {[%emt 0:00:36]} 48. Bd1 {[%emt 0:00:00]} Rd6 {[%emt 0:04:46]} 49. Bc2 {[%emt 0:00:00]} Ne8 {[%emt 0:00:43]} 50. Nxb5 {[%emt 0:00:00]} Rb6 {[%emt 0:00:21]} 51. Bf5 {[%emt 0:00:00]} Rxb5 {[%emt 0:00:40]} 52. Bxd7 {[%emt 0:00:00]} f6+ {[%emt 0:00:27]} 53. Kd4 {[%emt 0:00:00]} Rxb4 {[%emt 0:00:08]} 54. Bc6+ {[%emt 0:00:13]} Kf8 {[%emt 0:00:13]} 55. Ra8 {[%emt 0:00:05]} c3+ {[%emt 0:00:09]} 56. Kxc3 {[%emt 0:00:04]} Re4 {[%emt 0:00:04]} 57. Kd3 {[%emt 0:00:15]} 1-0

[Event "1000GM Schev-G4 May 2024"]
[Site "Sunnyvale"]
[Date "2024.05.11"]
[Round "1.4"]
[White "Bhatta, Rohit"]
[Black "Jaquez, Juan Manuel"]
[Result "1-0"]
[ECO "E11"]
[WhiteElo "1976"]
[BlackElo "2208"]
[Annotator "ChessBase"]
[PlyCount "121"]
[EventDate "2024.05.10"]
[EventType "schev"]
[EventCountry "USA"]
[SourceTitle "playchess.com"]
[Source "ChessBase"]
[SourceQuality "1"]
[TimeControl "5400+30"]

1. d4 {[%emt 1:31:00]} Nf6 {[%emt 0:00:19]} 2. c4 {[%emt 0:00:00]} e6 {[%emt 0:00:07]} 3. g3 {[%emt 0:00:00]} Bb4+ {[%emt 0:01:12]} 4. Bd2 {[%emt 0:00:00]} a5 {[%emt 0:00:54]} 5. Bg2 {[%emt 0:00:00]} d5 {[%emt 0:02:00]} 6. Qc2 {[%emt 0:00:00]} O-O {[%emt 0:03:42]} 7. Nf3 {[%emt 0:00:00]} Nc6 {[%emt 0:06:01]} 8. O-O {[%emt 0:00:00]} Ne4 {[%emt 0:06:57]} 9. Rd1 {[%emt 0:00:00]} Be7 {[%emt 0:19:19]} 10. a3 {[%emt 0:00:00]} Bf6 {[%emt 0:12:04]} 11. e3 {[%emt 0:00:00]} Ne7 {[%emt 0:09:43]} 12. Nc3 {[%emt 0:00:00]} Nxc3 {[%emt 0:02:33]} 13. Bxc3 {[%emt 0:00:00]} b6 {[%emt 0:00:34]} 14. e4 {[%emt 0:00:00]} g6 {[%emt 0:00:01]} 15. cxd5 {[%emt 0:00:00]} exd5 {[%emt 0:00:03]} 16. e5 {[%emt 0:00:00]} Bg7 {[%emt 0:00:05]} 17. Bd2 {[%emt 0:00:00]} h6 {[%emt 0:02:19]} 18. Rac1 {[%emt 0:00:00]} c6 {[%emt 0:00:24]} 19. b4 {[%emt 0:00:00]} Bf5 {[%emt 0:05:53]} 20. Qb2 {[%emt 0:00:00]} Qd7 {[%emt 0:01:08]} 21. Ne1 {[%emt 0:00:00]} Rfc8 {[%emt 0:01:59]} 22. Bc3 {[%emt 0:00:00]} Bf8 {[%emt 0:02:17]} 23. bxa5 {[%emt 0:00:00]} bxa5 {[%emt 0:00:04]} 24. Qd2 {[%emt 0:00:00]} c5 {[%emt 0:07:14]} 25. dxc5 {[%emt 0:00:00]} Rxc5 {[%emt 0:00:10]} 26. e6 {[%emt 0:01:40]} fxe6 {[%emt 0:01:31]} 27. Qd4 {[%emt 0:00:43]} Nc6 {[%emt 0:02:08]} 28. Qh8+ {[%emt 0:00:43]} Kf7 {[%emt 0:00:02]} 29. Bg7 {[%emt 0:04:00]} Rxc1 {[%emt 0:02:06]} 30. Rxc1 {[%emt 0:00:53]} Rc8 {[%emt 0:04:47]} 31. Bxf8 {[%emt 0:00:57]} Rxf8 {[%emt 0:00:01]} 32. Qxh6 {[%emt 0:00:51]} Qd6 {[%emt 0:07:54]} 33. Nf3 {[%emt 0:01:15]} Ke7 {[%emt 0:00:04]} 34. Qh4+ {[%emt 0:02:24]} Kd7 {[%emt 0:00:42]} 35. Qa4 {[%emt 0:01:19]} Rc8 {[%emt 0:00:18]} 36. Bf1 {[%emt 0:00:57]} Kd8 {[%emt 0:00:40]} 37. Bb5 {[%emt 0:00:41]} Be4 {[%emt 0:00:30]} 38. Ng5 {[%emt 0:00:54]} Ke7 {[%emt 0:01:09]} 39. Nxe4 {[%emt 0:00:53]} dxe4 {[%emt 0:00:14]} 40. Rxc6 {[%emt 0:00:26]} Rxc6 {[%emt 0:00:34]} 41. Bxc6 {[%emt 0:00:03]} e3 {[%emt 0:00:25]} 42. fxe3 {[%emt 0:01:03]} Qd2 {[%emt 0:00:09]} 43. Qe4 {[%emt 0:00:38]} Qc1+ {[%emt 0:00:34]} 44. Kg2 {[%emt 0:00:12]} Qxa3 {[%emt 0:01:40]} 45. Bd5 {[%emt 0:00:54]} Qd6 {[%emt 0:00:00]} 46. Qh4+ {[%emt 0:00:23]} Kd7 {[%emt 0:00:21]} 47. Qa4+ {[%emt 0:00:31]} Ke7 {[%emt 0:00:10]} 48. Qh4+ {[%emt 0:00:30]} Kd7 {[%emt 0:00:01]} 49. Qh7+ {[%emt 0:00:18]} Kd8 {[%emt 0:00:47]} 50. Qg8+ {[%emt 0:00:13]} Ke7 {[%emt 0:00:27]} 51. Qg7+ {[%emt 0:00:15]} Kd8 {[%emt 0:00:04]} 52. Qf6+ {[%emt 0:00:12]} Kc7 {[%emt 0:01:36]} 53. Qf7+ {[%emt 0:00:44]} Kd8 {[%emt 0:00:27]} 54. Qxe6 {[%emt 0:00:38]} Qc5 {[%emt 0:00:18]} 55. Qf6+ {[%emt 0:01:05]} Kc7 {[%emt 0:00:23]} 56. Qf4+ {[%emt 0:00:25]} Kd8 {[%emt 0:00:26]} 57. Qf6+ {[%emt 0:00:39]} Kc7 {[%emt 0:00:04]} 58. Qe5+ {[%emt 0:00:29]} Kd8 {[%emt 0:00:18]} 59. Qd4 {[%emt 0:00:28]} Qc2+ {[%emt 0:00:18]} 60. Kh3 {[%emt 0:00:28]} Qf5+ {[%emt 0:01:26]} 61. g4 {[%emt 0:00:02]} 1-0

[Event "1000GM Schev-G4 May 2024"]
[Site "Sunnyvale"]
[Date "2024.05.11"]
[Round "1.5"]
[White "Wu, Jayden"]
[Black "Ramirez, Carlos"]
[Result "1/2-1/2"]
[ECO "C18"]
[WhiteElo "1953"]
[BlackElo "2163"]
[Annotator "ChessBase"]
[PlyCount "88"]
[EventDate "2024.05.10"]
[EventType "schev"]
[EventCountry "USA"]
[SourceTitle "playchess.com"]
[Source "ChessBase"]
[SourceQuality "1"]
[TimeControl "5400+30"]

1. e4 {[%emt 0:00:02]} e6 {[%emt 0:02:45]} 2. d4 {[%emt 0:00:07]} d5 {[%emt 0:00:21]} 3. Nc3 {[%emt 0:00:05]} Bb4 {[%emt 0:00:11]} 4. e5 {[%emt 0:00:15]} c5 {[%emt 0:00:44]} 5. a3 {[%emt 0:00:11]} Ba5 {[%emt 0:04:23]} 6. b4 {[%emt 0:01:43]} cxd4 {[%emt 0:00:11]} 7. Nb5 {[%emt 0:00:56]} Bc7 {[%emt 0:00:09]} 8. f4 {[%emt 0:02:28]} Ne7 {[%emt 0:02:42]} 9. Nf3 {[%emt 0:03:40]} Bd7 {[%emt 0:02:51]} 10. Nbxd4 {[%emt 0:02:08]} a6 {[%emt 0:02:28]} 11. Bd3 {[%emt 0:01:33]} Nbc6 {[%emt 0:02:20]} 12. Be3 {[%emt 0:01:41]} Bb6 {[%emt 0:07:32]} 13. c3 {[%emt 0:01:51]} Rc8 {[%emt 0:04:01]} 14. O-O {[%emt 0:02:28]} Nf5 {[%emt 0:09:49]} 15. Bxf5 {[%emt 0:11:25]} exf5 {[%emt 0:00:34]} 16. Kh1 {[%emt 0:00:35]} O-O {[%emt 0:05:53]} 17. Qd2 {[%emt 0:03:37]} Nxd4 {[%emt 0:06:17]} 18. Bxd4 {[%emt 0:00:49]} Rc4 {[%emt 0:06:48]} 19. Bxb6 {[%emt 0:06:36]} Qxb6 {[%emt 0:00:09]} 20. Nd4 {[%emt 0:05:24]} Rfc8 {[%emt 0:04:43]} 21. Rf3 {[%emt 0:03:01]} Qc7 {[%emt 0:02:14]} 22. Ne2 {[%emt 0:02:07]} d4 {[%emt 0:07:36]} 23. Rc1 {[%emt 0:11:34]} Bc6 {[%emt 0:07:04]} 24. Rd3 {[%emt 0:02:22]} dxc3 {[%emt 0:01:37]} 25. Rcxc3 {[%emt 0:01:35]} b5 {[%emt 0:00:45]} 26. Rxc4 {[%emt 0:01:01]} bxc4 {[%emt 0:00:13]} 27. Rd6 {[%emt 0:00:10]} Be4 {[%emt 0:00:26]} 28. Nc3 {[%emt 0:01:16]} Bd3 {[%emt 0:02:43]} 29. Qe3 {[%emt 0:04:03]} h6 {[%emt 0:06:28]} 30. h3 {[%emt 0:01:19]} Ra8 {[%emt 0:03:41]} 31. Qd4 {[%emt 0:03:56]} Qe7 {[%emt 0:01:04]} 32. Rd7 {[%emt 0:01:27]} Qh4 {[%emt 0:00:49]} 33. Qe3 {[%emt 0:07:24]} Re8 {[%emt 0:00:21]} 34. Kh2 {[%emt 0:04:46]} Re6 {[%emt 0:00:36]} 35. Rd6 {[%emt 0:02:30]} Kh7 {[%emt 0:02:26]} 36. Rxe6 {[%emt 0:01:14]} fxe6 {[%emt 0:00:02]} 37. a4 {[%emt 0:00:02]} Qe7 {[%emt 0:00:36]} 38. b5 {[%emt 0:00:13]} axb5 {[%emt 0:00:11]} 39. axb5 {[%emt 0:00:07]} Qb4 {[%emt 0:00:08]} 40. Qd2 {[%emt 0:08:24]} Kg6 {[%emt 0:01:15]} 41. Kg3 {[%emt 0:00:31]} Kf7 {[%emt 0:00:21]} 42. Kf2 {[%emt 0:00:16]} g5 {[%emt 0:01:42]} 43. fxg5 {[%emt 0:01:36]} hxg5 {[%emt 0:00:02]} 44. Qxg5 {[%emt 0:00:35]} Qxc3 {[%emt 0:01:50]} 1/2-1/2

[Event "1000GM Schev-G4 May 2024"]
[Site "Sunnyvale"]
[Date "2024.05.12"]
[Round "2.1"]
[White "Champsi, Imran"]
[Black "Rivera, Ingris"]
[Result "1-0"]
[ECO "B23"]
[WhiteElo "2029"]
[BlackElo "2172"]
[Annotator "ChessBase"]
[PlyCount "95"]
[EventDate "2024.05.10"]
[EventType "schev"]
[EventCountry "USA"]
[SourceTitle "playchess.com"]
[Source "ChessBase"]
[SourceQuality "1"]
[TimeControl "5400+30"]

1. e4 c5 2. Nc3 d6 3. d4 cxd4 4. Qxd4 Nc6 5. Qd2 Nf6 6. b3 g6 7. Bb2 Bg7 8. O-O-O a6 9. Nge2 b5 10. f3 O-O 11. g4 b4 12. Nd5 Nxd5 13. Qxd5 Qc7 14. Bxg7 Kxg7 15. Nd4 Bb7 16. Nxc6 Qxc6 17. Qd4+ f6 18. Qxb4 Rfc8 19. Bd3 a5 20. Qb5 Qc7 21. Qa4 Bc6 22. Qd4 a4 23. g5 axb3 24. gxf6+ exf6 25. axb3 Ra2 26. Kd2 Bb5 27. Rc1 Qa5+ 28. b4 Qa4 29. Ke3 Qa3 30. c4 Qxb4 31. Rhd1 Qa3 32. Rb1 Rxc4 33. Qb6 Bc6 34. Rb3 Qc5+ 35. Qxc5 Rxc5 36. Bb1 Rxh2 37. Rxd6 Bb5 38. Rd5 Re2+ 39. Kd4 Rxd5+ 40. exd5 {[%emt 0:20:00]} Be8 {[%emt 0:20:00]} 41. d6 {[%emt 0:00:30]} Kf8 {[%emt 0:00:30]} 42. Rb7 {[%emt 0:00:30]} Rd2+ {[%emt 0:00:30]} 43. Kc5 {[%emt 0:00:30]} Bf7 {[%emt 0:00:30]} 44. Be4 {[%emt 0:00:30]} h5 {[%emt 0:00:30]} 45. Bc6 {[%emt 0:00:30]} h4 {[%emt 0:00:30]} 46. Rb8+ {[%emt 0:00:30]} Kg7 {[%emt 0:00:30]} 47. d7 {[%emt 0:00:30]} Rc2+ {[%emt 0:00:30]} 48. Kd4 {[%emt 0:00:30]} 1-0

[Event "1000GM Schev-G4 May 2024"]
[Site "Sunnyvale"]
[Date "2024.05.12"]
[Round "2.2"]
[White "Pullela, Sricharan"]
[Black "Zuluaga Mancilla, Cesar"]
[Result "0-1"]
[ECO "D10"]
[WhiteElo "2125"]
[BlackElo "2190"]
[Annotator "ChessBase"]
[PlyCount "110"]
[EventDate "2024.05.10"]
[EventType "schev"]
[EventCountry "USA"]
[SourceTitle "playchess.com"]
[Source "ChessBase"]
[SourceQuality "1"]
[TimeControl "5400+30"]

1. d4 {[%emt 0:00:01]} d5 {[%emt 0:05:35]} 2. c4 {[%emt 0:00:05]} c6 {[%emt 0:00:04]} 3. cxd5 {[%emt 0:00:04]} cxd5 {[%emt 0:00:04]} 4. Nc3 {[%emt 0:00:04]} Nf6 {[%emt 0:00:11]} 5. f3 {[%emt 0:00:06]} Nc6 {[%emt 0:01:14]} 6. e4 {[%emt 0:00:03]} e6 {[%emt 0:00:04]} 7. e5 {[%emt 0:00:03]} Nd7 {[%emt 0:00:08]} 8. f4 {[%emt 0:00:04]} a6 {[%emt 0:02:25]} 9. Nf3 {[%emt 0:00:10]} Nb6 {[%emt 0:00:40]} 10. Bd3 {[%emt 0:00:38]} Be7 {[%emt 0:01:59]} 11. Qe2 {[%emt 0:03:02]} Bd7 {[%emt 0:00:28]} 12. Be3 {[%emt 0:02:24]} Nb4 {[%emt 0:00:10]} 13. Bb1 {[%emt 0:00:30]} Na4 {[%emt 0:00:51]} 14. Nxa4 {[%emt 0:16:50]} Bxa4 {[%emt 0:00:17]} 15. b3 {[%emt 0:05:18]} Bb5 {[%emt 0:01:04]} 16. Qd1 {[%emt 0:00:04]} Qc7 {[%emt 0:01:05]} 17. Qd2 {[%emt 0:02:46]} Rc8 {[%emt 0:02:50]} 18. Kf2 {[%emt 0:02:19]} a5 {[%emt 0:01:12]} 19. a3 {[%emt 0:01:33]} Nc6 {[%emt 1:19:39]} 20. Rc1 {[%emt 0:12:15]} g6 {[%emt 0:00:00]} 21. g4 {[%emt 0:02:58]} h5 {[%emt 0:00:00]} 22. h3 {[%emt 0:00:42]} hxg4 {[%emt 0:00:00]} 23. hxg4 {[%emt 0:00:04]} Kd7 {[%emt 0:00:00]} 24. Kg2 {[%emt 0:01:05]} Qb6 {[%emt 0:00:00]} 25. Bc2 {[%emt 0:12:46]} Ba6 {[%emt 0:00:00]} 26. Bd1 {[%emt 0:02:24]} Qb5 {[%emt 0:00:00]} 27. Bc2 {[%emt 0:02:36]} Rh7 {[%emt 0:00:00]} 28. f5 {[%emt 0:07:13]} gxf5 {[%emt 0:00:00]} 29. gxf5 {[%emt 0:00:03]} Rg8+ {[%emt 0:00:00]} 30. Kf2 {[%emt 0:01:53]} Bh4+ {[%emt 0:00:00]} 31. Nxh4 {[%emt 0:00:05]} Rxh4 {[%emt 0:00:00]} 32. Rh1 {[%emt 0:02:02]} Rhg4 {[%emt 0:00:00]} 33. Rag1 {[%emt 0:01:55]} Rxg1 {[%emt 0:00:00]} 34. Rxg1 {[%emt 0:00:14]} Rxg1 {[%emt 0:00:00]} 35. fxe6+ {[%emt 0:00:12]} fxe6 {[%emt 0:00:00]} 36. Kxg1 {[%emt 0:00:28]} Qf1+ {[%emt 0:00:00]} 37. Kh2 {[%emt 0:00:03]} Be2 {[%emt 0:00:00]} 38. Bg1 {[%emt 0:02:17]} Bg4 {[%emt 0:00:00]} 39. Qg2 {[%emt 0:02:49]} Qf4+ {[%emt 0:00:00]} 40. Qg3 {[%emt 0:00:12]} Qd2+ {[%emt 0:00:00]} 41. Qf2 {[%emt 0:02:52]} Qh6+ {[%emt 0:00:00]} 42. Kg3 {[%emt 0:00:03]} Qh3+ {[%emt 0:00:00]} 43. Kf4 {[%emt 0:00:03]} Bf5 {[%emt 0:00:00]} 44. Bd1 {[%emt 0:12:19]} Qh6+ {[%emt 0:00:00]} 45. Kg3 {[%emt 0:00:48]} Qg5+ {[%emt 0:00:00]} 46. Kh2 {[%emt 0:00:47]} Be4 {[%emt 0:00:00]} 47. Kh3 {[%emt 0:01:16]} Bf5+ {[%emt 0:00:00]} 48. Kh2 {[%emt 0:00:07]} Ne7 {[%emt 0:00:00]} 49. Qe3 {[%emt 0:05:03]} Qh4+ {[%emt 0:00:00]} 50. Kg2 {[%emt 0:00:02]} Be4+ {[%emt 0:00:00]} 51. Kf1 {[%emt 0:00:03]} Nf5 {[%emt 0:00:00]} 52. Qc3 {[%emt 0:00:27]} Qh1 {[%emt 0:00:00]} 53. Qd2 {[%emt 0:02:15]} Ng3+ {[%emt 0:00:00]} 54. Kf2 {[%emt 0:00:05]} Qg2+ {[%emt 0:00:00]} 55. Ke3 {[%emt 0:00:05]} Nf1+ {[%emt 0:00:00]} 0-1

[Event "1000GM Schev-G4 May 2024"]
[Site "Sunnyvale"]
[Date "2024.05.12"]
[Round "2.3"]
[White "Bhatta, Rohit"]
[Black "Cremisi, Daniel"]
[Result "0-1"]
[ECO "E08"]
[WhiteElo "1976"]
[BlackElo "2171"]
[Annotator "ChessBase"]
[PlyCount "132"]
[EventDate "2024.05.10"]
[EventType "schev"]
[EventCountry "USA"]
[SourceTitle "playchess.com"]
[Source "ChessBase"]
[SourceQuality "1"]
[TimeControl "5400+30"]

1. d4 {[%emt 0:15:58]} d5 {[%emt 0:02:16]} 2. c4 {[%emt 0:00:06]} e6 {[%emt 0:00:02]} 3. Nf3 {[%emt 0:00:08]} c6 {[%emt 0:00:14]} 4. Qc2 {[%emt 0:00:15]} Nf6 {[%emt 0:00:38]} 5. g3 {[%emt 0:00:19]} Bb4+ {[%emt 0:01:01]} 6. Bd2 {[%emt 0:00:37]} Be7 {[%emt 0:00:17]} 7. Bg2 {[%emt 0:00:21]} O-O {[%emt 0:00:29]} 8. O-O {[%emt 0:00:14]} b6 {[%emt 0:00:06]} 9. Bf4 {[%emt 0:02:15]} Bb7 {[%emt 0:01:40]} 10. Rd1 {[%emt 0:00:26]} Nbd7 {[%emt 0:01:02]} 11. Ne5 {[%emt 0:00:46]} Nxe5 {[%emt 0:03:33]} 12. dxe5 {[%emt 0:01:11]} Nd7 {[%emt 0:00:46]} 13. cxd5 {[%emt 0:01:51]} cxd5 {[%emt 0:00:40]} 14. e4 {[%emt 0:02:18]} dxe4 {[%emt 0:02:52]} 15. Bxe4 {[%emt 0:00:24]} Bxe4 {[%emt 0:00:53]} 16. Qxe4 {[%emt 0:00:07]} Qc7 {[%emt 0:01:13]} 17. Nc3 {[%emt 0:04:57]} Nc5 {[%emt 0:02:23]} 18. Qe2 {[%emt 0:03:07]} Rfd8 {[%emt 0:01:59]} 19. Nb5 {[%emt 0:08:30]} Qb7 {[%emt 0:02:18]} 20. Nd6 {[%emt 0:03:51]} Bxd6 {[%emt 0:00:35]} 21. exd6 {[%emt 0:01:00]} Qe4 {[%emt 0:04:31]} 22. Qxe4 {[%emt 0:10:30]} Nxe4 {[%emt 0:00:02]} 23. Rac1 {[%emt 0:01:06]} f6 {[%emt 0:03:52]} 24. f3 {[%emt 0:09:48]} Nc5 {[%emt 0:01:01]} 25. b4 {[%emt 0:09:19]} Nd7 {[%emt 0:00:40]} 26. Rc7 {[%emt 0:02:21]} e5 {[%emt 0:00:42]} 27. Be3 {[%emt 0:00:26]} Kf7 {[%emt 0:00:26]} 28. Rdc1 {[%emt 0:09:40]} Ke6 {[%emt 0:01:28]} 29. R1c6 {[%emt 0:00:38]} Kd5 {[%emt 0:03:25]} 30. a4 {[%emt 0:04:42]} Nf8 {[%emt 0:02:58]} 31. Rc1 {[%emt 0:02:54]} Rd7 {[%emt 0:00:52]} 32. a5 {[%emt 0:01:57]} bxa5 {[%emt 0:01:06]} 33. R1c5+ {[%emt 0:01:27]} Kxd6 {[%emt 0:01:27]} 34. Rxd7+ {[%emt 0:02:05]} Nxd7 {[%emt 0:01:40]} 35. Rxa5 {[%emt 0:00:01]} Kc6 {[%emt 0:03:47]} 36. b5+ {[%emt 0:02:09]} Kb7 {[%emt 0:00:10]} 37. Ra3 {[%emt 0:00:39]} Nb6 {[%emt 0:01:08]} 38. Rd3 {[%emt 0:00:09]} Rc8 {[%emt 0:00:25]} 39. Rd6 {[%emt 0:00:49]} Nc4 {[%emt 0:01:13]} 40. Rd7+ {[%emt 0:00:01]} Rc7 {[%emt 0:00:08]} 41. Rxc7+ {[%emt 0:00:33]} Kxc7 {[%emt 0:00:01]} 42. Bxa7 {[%emt 0:00:10]} Nd6 {[%emt 0:01:08]} 43. Bc5 {[%emt 0:00:22]} g6 {[%emt 0:00:34]} 44. Be3 {[%emt 0:01:22]} Nxb5 {[%emt 0:00:11]} 45. g4 {[%emt 0:00:30]} Kd6 {[%emt 0:00:07]} 46. h4 {[%emt 0:00:06]} Kd5 {[%emt 0:00:29]} 47. Kg2 {[%emt 0:00:32]} Nd4 {[%emt 0:00:14]} 48. Kf2 {[%emt 0:00:41]} Ne6 {[%emt 0:00:45]} 49. Bd2 {[%emt 0:00:46]} Kd4 {[%emt 0:01:04]} 50. Bb4 {[%emt 0:00:31]} e4 {[%emt 0:00:20]} 51. fxe4 {[%emt 0:00:14]} Kxe4 {[%emt 0:00:06]} 52. Bd2 {[%emt 0:00:44]} Nf4 {[%emt 0:02:14]} 53. Kg3 {[%emt 0:00:09]} Nd5 {[%emt 0:00:47]} 54. Kf2 {[%emt 0:00:24]} h5 {[%emt 0:00:27]} 55. gxh5 {[%emt 0:00:13]} gxh5 {[%emt 0:00:01]} 56. Kg3 {[%emt 0:01:00]} f5 {[%emt 0:00:23]} 57. Bg5 {[%emt 0:00:29]} Ne3 {[%emt 0:00:31]} 58. Kf2 {[%emt 0:00:31]} f4 {[%emt 0:01:05]} 59. Be7 {[%emt 0:00:31]} Ng4+ {[%emt 0:00:17]} 60. Kg2 {[%emt 0:00:25]} Ke3 {[%emt 0:00:19]} 61. Bg5 {[%emt 0:00:10]} Ne5 {[%emt 0:00:38]} 62. Bh6 {[%emt 0:00:38]} Nf7 {[%emt 0:00:18]} 63. Bf8 {[%emt 0:01:00]} Ke2 {[%emt 0:00:11]} 64. Bc5 {[%emt 0:00:15]} Nh6 {[%emt 0:00:40]} 65. Bb6 {[%emt 0:00:49]} Nf5 {[%emt 0:00:12]} 66. Kh3 {[%emt 0:00:26]} f3 {[%emt 0:00:11]} 0-1